bitfinex/quotes_SOLUSD_20260103
["timestamp","ask_amount","ask_price","bid_price","bid_amount"]
[1767440792364,1.70151626,130.69,130.67,0.68613321]
[1767440792569,2.37689006,130.69,130.66,8.3394226]
[1767440793044,1.70151626,130.69,130.67,0.68613321]
[1767440796066,2.38569836,130.69,130.65,8.34017071]
[1767440796267,1.70151626,130.69,130.66,0.68613321]
[1767440796467,1.82204405,130.69,130.65,8.34017071]
[1767440796647,0.6841821,130.68,130.65,8.34017071]
[1767440798270,10.04276611,130.7,130.66,8.33956451]
[1767440799771,10.04276611,130.7,130.67,0.68613321]
[1767440800150,10.04276611,130.7,130.65,8.34017071]
[1767440800448,9.35289053,130.7,130.66,0.68613321]
[1767440802568,10.03707263,130.7,130.67,0.68613321]
[1767440802766,9.35289053,130.7,130.67,0.68613321]
[1767440803573,1.70151626,130.7,130.67,0.68613321]
[1767440805371,9.35227872,130.71,130.68,0.68613321]
[1767440805850,9.35165061,130.72,130.68,0.68613321]
[1767440806173,0.12616434,130.71,130.67,8.33881795]
[1767440806554,0.12616434,130.71,130.68,0.68613321]
[1767440807968,9.35165061,130.72,130.69,0.68613321]
[1767440810487,10.30699514,130.72,130.69,0.68613321]
[1767440811287,0.6841821,130.71,130.67,8.3389992]
[1767440812472,14.30018929,130.72,130.68,8.33830807]
[1767440812658,14.30018929,130.72,130.69,0.68613321]
[1767440812857,2.65686079,130.71,130.69,0.68613321]
[1767440816079,14.42071708,130.72,130.68,0.68613321]
[1767440816379,0.6841821,130.71,130.68,0.68613321]
[1767440817782,14.99006487,130.72,130.69,0.68613321]
[1767440820090,14.30018929,130.72,130.69,0.68613321]
[1767440822189,14.43252387,130.72,130.69,0.68613321]
[1767440822370,0.67249338,130.71,130.68,0.66693114]
[1767440823064,14.43252387,130.72,130.68,0.66693114]
[1767440824289,0.67249338,130.71,130.67,7.65286599]
[1767440824482,0.67249338,130.71,130.67,8.31979713]
[1767440826089,0.67249338,130.71,130.68,0.66693114]
[1767440829191,0.67249338,130.71,130.68,8.31920301]
[1767440831700,14.30018929,130.72,130.69,0.66693114]
[1767440833494,11.6433285,130.72,130.69,0.66693114]
[1767440835089,11.77566308,130.72,130.69,0.66693114]
[1767440836002,0.67249338,130.71,130.68,0.66693114]
[1767440836398,11.6433285,130.72,130.68,0.66693114]
[1767440836605,0.13233458,130.71,130.68,0.66693114]
[1767440836798,11.6433285,130.72,130.68,0.66693114]
[1767440837601,14.30018929,130.72,130.68,0.66693114]
[1767440838203,11.6433285,130.72,130.68,0.66693114]
[1767440846211,0.67249338,130.71,130.68,0.66693114]
[1767440846386,11.77566308,130.72,130.68,0.66693114]
[1767440846702,0.67249338,130.71,130.67,10.97665792]
[1767440847008,0.67249338,130.71,130.68,8.31907794]
[1767440847412,0.67249338,130.71,130.66,17.28379193]
[1767440847587,0.13773617,130.7,130.66,14.62693114]
[1767440848110,0.13773617,130.7,130.67,0.66693114]
[1767440850094,8.33579941,130.72,130.67,0.66693114]
[1767440850409,0.12450261,130.71,130.67,0.66693114]
[1767440852010,8.33579941,130.72,130.67,0.66693114]
[1767440853106,0.12450261,130.71,130.67,0.66693114]
[1767440853516,0.68024703,130.7,130.67,0.66693114]
[1767440854303,10.98850804,130.7,130.67,0.66693114]
[1767440854925,8.33164725,130.7,130.67,0.66693114]
[1767440855528,0.13006006,130.69,130.66,0.70265333]
[1767440856102,0.13006006,130.69,130.65,8.35651036]
[1767440856411,0.13006006,130.69,130.65,7.65385703]
[1767440856613,0.13006006,130.69,130.66,0.70265333]
[1767440858321,0.13006006,130.69,130.65,8.35651036]
[1767440859322,2.78692085,130.69,130.65,8.35651036]
[1767440859621,0.67474516,130.68,130.65,8.35651036]
[1767440861906,3.3427214,130.69,130.66,0.70265333]
[1767440864830,0.68586061,130.69,130.66,0.70265333]
[1767440865023,3.3427214,130.69,130.66,0.70265333]
[1767440865932,0.68586061,130.69,130.66,0.70265333]
[1767440866124,0.12450261,130.68,130.65,7.65385703]
[1767440866322,0.12450261,130.68,130.65,8.35651036]
[1767440866632,2.65686079,130.69,130.65,8.35651036]
[1767440866633,3.3427214,130.69,130.66,0.70265333]
[1767440870836,24.26826101,130.7,130.66,0.70265333]
[1767440872535,23.31211803,130.7,130.66,0.70265333]
[1767440873736,0.68024703,130.69,130.66,0.70265333]
[1767440874240,23.99797864,130.7,130.66,0.70265333]
[1767440876642,0.12450261,130.69,130.65,10.05722817]
[1767440876942,7.77621377,130.69,130.65,10.05722817]
[1767440877239,7.65171116,130.69,130.66,0.70265333]
[1767440877422,0.68024703,130.69,130.65,10.05722817]
[1767440877934,0.68024703,130.69,130.65,9.35457484]
[1767440878126,21.61129033,130.7,130.66,0.70265333]
[1767440879522,21.73579294,130.7,130.66,0.70265333]
[1767440879841,0.68024703,130.69,130.66,0.70265333]
[1767440880543,21.61129033,130.7,130.66,0.70265333]
[1767440881227,23.31200814,130.7,130.66,0.70265333]
[1767440883341,21.61129033,130.7,130.66,0.70265333]
[1767440883550,27.30614365,130.7,130.66,0.70265333]
[1767440884050,0.68282613,130.69,130.65,8.31799951]
[1767440884347,0.68282613,130.69,130.66,0.66414248]
[1767440884720,1.70071781,130.68,130.64,0.66414248]
[1767440885044,1.70071781,130.67,130.64,0.66414248]
[1767440886044,7.77451612,130.68,130.64,0.66414248]
[1767440886252,0.68282613,130.67,130.64,8.31872884]
[1767440886548,9.47523393,130.68,130.65,0.66414248]
[1767440886750,9.47523393,130.68,130.64,8.31872884]
[1767440886927,0.68282613,130.67,130.64,8.31872884]
[1767440887454,9.35333647,130.68,130.65,0.66414248]
[1767440889950,1.70071781,130.67,130.65,0.66414248]
[1767440890157,2.38354394,130.67,130.64,0.66414248]
[1767440890456,1.70071781,130.67,130.64,0.66414248]
[1767440892051,0.68282613,130.64,130.61,8.3201744]
[1767440892652,1.70071781,130.65,130.61,8.3201744]
[1767440892841,2.38920989,130.65,130.61,8.3201744]
[1767440893347,0.12189746,130.64,130.61,8.3201744]
[1767440893555,1.82261527,130.64,130.61,8.3201744]
[1767440894130,1.82261527,130.64,130.61,0.66414248]
[1767440894334,1.70071781,130.63,130.6,0.66414248]
[1767440894535,1.70071781,130.62,130.6,0.66414248]
[1767440894760,2.38354394,130.63,130.6,0.66414248]
[1767440895344,1.70071781,130.63,130.6,0.66414248]
[1767440895543,0.68282613,130.62,130.59,7.6573819]
[1767440895857,0.68282613,130.62,130.59,8.32152438]
[1767440896057,2.38920989,130.63,130.59,8.32152438]
[1767440898944,0.68849208,130.63,130.6,0.66414248]
[1767440899665,13.96,130.64,130.6,0.66414248]
[1767440899861,15.66071781,130.64,130.6,0.66414248]
[1767440900035,13.96,130.64,130.61,8.320107]
[1767440900244,13.96,130.64,130.62,0.66414248]
[1767440900455,1.70071781,130.65,130.62,0.66414248]
[1767440901489,9.35349664,130.68,130.64,0.66414248]
[1767440901640,1.70071781,130.67,130.64,0.66414248]
[1767440901968,9.35349664,130.68,130.64,0.66414248]
[1767440902462,1.70071781,130.68,130.64,0.66414248]
[1767440904564,1.70071781,130.68,130.65,0.66414248]
[1767440905458,10.04111395,130.69,130.65,0.66414248]
[1767440910271,26.32605391,130.7,130.66,0.70966249]
[1767440910452,17.9741968,130.7,130.66,0.70966249]
[1767440910651,3.9941968,130.7,130.66,0.70966249]
[1767440910850,10.05177477,130.71,130.66,0.70966249]
[1767440911658,10.05177477,130.71,130.67,8.36252848]
[1767440912557,10.05177477,130.71,130.68,0.70966249]
[1767440916140,8.35105696,130.71,130.68,0.70966249]
[1767440916552,10.05177477,130.71,130.68,0.70966249]
[1767440920457,0.10999427,130.7,130.66,8.36311419]
[1767440920960,0.69461029,130.69,130.65,7.65393511]
[1767440921352,0.11584043,130.68,130.65,8.3635976]
[1767440921874,0.7005155,130.69,130.66,0.70966249]
[1767440922075,10.05271953,130.7,130.66,0.70966249]
[1767440923547,8.35200172,130.7,130.66,0.70966249]
[1767440923753,10.05271953,130.7,130.66,0.70966249]
[1767440925379,4.15205094,130.72,130.67,1.70071781]
[1767440925577,4.15205094,130.72,130.68,1.70071781]
[1767440925777,0.15847358,130.72,130.68,1.70071781]
[1767440927081,7.80858379,130.72,130.68,1.70071781]
[1767440928277,7.80858379,130.72,130.68,9.35291894]
[1767440929577,0.15847358,130.72,130.69,1.70071781]
[1767440931864,0.15847358,130.72,130.68,1.70071781]
[1767440932279,0.7005155,130.71,130.66,19.13362926]
[1767440932481,0.7005155,130.71,130.67,1.70071781]
[1767440932665,0.7005155,130.71,130.66,20.83434707]
[1767440932865,0.7005155,130.71,130.65,9.35475531]
[1767440933087,0.7005155,130.69,130.65,9.35475531]
[1767440934473,0.7005155,130.69,130.65,10.31102818]
[1767440936282,14.6605155,130.7,130.66,2.65699068]
[1767440937798,14.6605155,130.7,130.67,7.65286599]
[1767440940806,14.6605155,130.7,130.66,7.6534517]
[1767440945504,14.6605155,130.7,130.65,26.78913126]
[1767440946001,14.6605155,130.7,130.65,29.44612194]
[1767440946302,14.6605155,130.7,130.66,2.65699068]
[1767440947004,13.96,130.7,130.67,7.65286599]
[1767440948486,0.70592799,130.69,130.66,7.6532352]
[1767440949308,0.70592799,130.71,130.66,29.44385514]
[1767440949805,0.70592799,130.71,130.67,2.65699068]
[1767440950022,0.70592799,130.71,130.66,29.44385514]
[1767440950183,0.70592799,130.7,130.66,29.44385514]
[1767440950518,0.70592799,130.69,130.66,7.6532352]
[1767440958799,0.70592799,130.69,130.66,2.65699068]
[1767440959711,0.70592799,130.69,130.65,2.65699068]
[1767440962316,0.70592799,130.69,130.64,26.79048717]
[1767440962512,0.70592799,130.69,130.65,7.6539111]
[1767440962715,0.70592799,130.69,130.65,10.31090178]
[1767440963391,0.70592799,130.68,130.65,10.31090178]
[1767440969217,0.70592799,130.7,130.66,2.65699068]
[1767440969412,0.70592799,130.7,130.65,26.78900486]
[1767440969613,0.70592799,130.7,130.66,2.65699068]
[1767440971023,0.70592799,130.7,130.67,7.65286599]
[1767440972803,0.70592799,130.7,130.67,2.65699068]
[1767440974322,0.70592799,130.7,130.67,10.30937895]
[1767440987933,0.70592799,130.7,130.67,7.65238827]
[1767440988121,0.70592799,130.7,130.67,10.30937895]
[1767440994144,0.70592799,130.7,130.67,7.65238827]
[1767440996543,0.70592799,130.7,130.66,20.83335644]
[1767440999050,0.70592799,130.7,130.66,19.13301559]
[1767440999257,0.70592799,130.7,130.66,28.48680814]
[1767441000146,0.70592799,130.7,130.66,7.6534517]
[1767441000344,0.07279483,130.68,130.64,1.70034085]
[1767441001233,0.07279483,130.68,130.64,9.35475578]
[1767441002449,0.07279483,130.68,130.65,0.69443156]
[1767441003838,0.07279483,130.68,130.65,8.34843654]
[1767441007654,0.07279483,130.68,130.65,0.69443156]
[1767441014350,0.07279483,130.68,130.65,8.34843545]
[1767441016069,0.07279483,130.68,130.66,0.69443156]
[1767441022445,0.07279483,130.68,130.65,8.34843545]
[1767441024072,0.07279483,130.68,130.65,7.65400389]
[1767441024777,0.07279483,130.68,130.65,0.69443156]
[1767441025185,0.099,130.66,130.64,7.65462339]
[1767441025350,0.099,130.66,130.63,8.34940391]
[1767441027152,1.79934085,130.66,130.63,8.34940391]
[1767441032477,0.099,130.66,130.63,8.34940391]
[1767441038681,0.099,130.66,130.64,0.690368]
[1767441052396,2.36852688,130.67,130.64,0.690368]
[1767441056584,3.32686229,130.67,130.64,0.690368]
[1767441058494,0.12681631,130.66,130.63,7.65497235]
[1767441059002,0.12681631,130.66,130.63,8.34534035]
[1767441061712,11.00334156,130.67,130.64,0.66262448]
[1767441062804,3.35036275,130.67,130.64,0.66262448]
[1767441063809,0.69168649,130.67,130.64,0.66262448]
[1767441064111,0.69168649,130.68,130.65,3.32130074]
[1767441064288,10.41380466,130.7,130.66,0.66262448]
[1767441064489,0.10355086,130.7,130.66,0.66262448]
[1767441064687,0.69168649,130.71,130.66,0.66262448]
[1767441064905,0.69168649,130.71,130.67,7.65286599]
[1767441066601,24.96044701,130.72,130.68,0.66262448]
[1767441066794,0.10355086,130.71,130.68,0.66262448]
[1767441068306,2.76222712,130.71,130.68,0.66262448]
[1767441069399,10.41291305,130.71,130.68,0.66262448]
[1767441069709,7.75423679,130.71,130.68,0.66262448]
[1767441072116,0.68580513,130.7,130.68,0.66262448]
[1767441072805,0.68580513,130.7,130.66,10.97451873]
[1767441074915,8.34237242,130.71,130.68,0.66262448]
[1767441077719,7.65068593,130.71,130.68,0.66262448]
[1767441079518,7.75423679,130.71,130.68,0.66262448]
[1767441082622,0.68580513,130.7,130.67,8.31547332]
[1767441083429,0.68580513,130.7,130.67,7.65284884]
[1767441083730,8.34237242,130.71,130.68,0.66262448]
[1767441083906,7.65068593,130.71,130.68,0.66262448]
[1767441085434,7.65068593,130.71,130.68,0.63201442]
[1767441091223,7.78454075,130.71,130.68,0.63201442]
[1767441093631,0.68610817,130.7,130.67,7.65284884]
[1767441093934,7.78393522,130.71,130.68,0.6988615]
[1767441098440,0.6812284,130.68,130.63,2.65867626]
[1767441098639,0.14420833,130.67,130.63,0.6988615]
[1767441099144,0.14420833,130.67,130.63,3.35753776]
[1767441099639,0.14420833,130.67,130.63,11.01255633]
[1767441103757,7.78576577,130.68,130.64,0.6988615]
[1767441103925,8.34481461,130.68,130.64,0.6988615]
[1767441104447,11.00349087,130.68,130.64,0.6988615]
[1767441115144,0.13324929,130.67,130.63,8.35388007]
[1767441115352,0.13324929,130.67,130.64,0.6988615]
[1767441115647,11.00349087,130.68,130.64,0.6988615]
[1767441117256,0.13324929,130.67,130.64,0.6988615]
[1767441117554,11.00349087,130.68,130.64,0.6988615]
[1767441117724,10.31119274,130.68,130.64,0.6988615]
[1767441117932,24.40386767,130.69,130.65,0.6988615]
[1767441118546,23.44623588,130.69,130.65,0.6988615]
[1767441121076,21.74519141,130.69,130.65,0.6988615]
[1767441121258,23.44623588,130.69,130.65,0.6988615]
[1767441122978,0.68670764,130.68,130.65,0.6988615]
[1767441124471,10.04011023,130.68,130.65,0.6988615]
[1767441124977,0.13878388,130.67,130.65,0.6988615]
[1767441127382,8.33925953,130.68,130.65,0.6988615]
[1767441129786,10.040304,130.68,130.65,0.6988615]
[1767441132485,8.33925953,130.68,130.65,0.6988615]
[1767441136994,10.040304,130.68,130.65,0.6988615]
[1767441137171,0.13859205,130.67,130.65,0.6988615]
[1767441138398,10.040304,130.68,130.65,0.6988615]
[1767441138893,8.33925953,130.68,130.65,0.6988615]
[1767441153419,10.040304,130.68,130.65,0.6988615]
[1767441155517,0.13859205,130.67,130.65,0.6988615]
[1767441155698,10.05952064,130.68,130.65,0.6988615]
[1767441156022,0.11956757,130.67,130.65,0.6988615]
[1767441157420,10.05952064,130.68,130.65,0.6988615]
[1767441159227,0.11956757,130.67,130.64,0.66474044]
[1767441174423,0.11956757,130.67,130.63,7.65520936]
[1767441174637,0.11956757,130.67,130.63,8.3199498]
[1767441174820,0.11956757,130.67,130.64,0.66474044]
[1767441175737,10.05952064,130.68,130.64,0.66474044]
[1767441177444,8.35847617,130.68,130.64,0.66474044]
[1767441177624,10.05952064,130.68,130.65,0.66474044]
[1767441178551,11.0169406,130.68,130.65,0.66474044]
[1767441178839,8.35847617,130.68,130.65,0.66474044]
[1767441180042,0.11956757,130.67,130.63,10.31367379]
[1767441183157,8.36507803,130.68,130.65,0.69777483]
[1767441183845,7.65235812,130.68,130.65,0.69777483]
[1767441184147,10.31082255,130.68,130.65,0.69777483]
[1767441185348,7.65235812,130.68,130.65,0.69777483]
[1767441189353,7.76538985,130.68,130.65,0.69777483]
[1767441192137,0.11303173,130.68,130.65,8.35170724]
[1767441199357,0.11303173,130.68,130.64,7.65462339]
[1767441199853,0.11303173,130.68,130.64,8.35239822]
[1767441203260,0.11303173,130.68,130.65,0.69777483]
[1767441204058,24.9830955,130.69,130.66,0.69777483]
[1767441204458,0.11303173,130.68,130.65,7.65392445]
[1767441204848,24.9830955,130.69,130.66,0.69777483]
[1767441209374,0.11303173,130.68,130.65,0.69777483]
[1767441213974,16.61846443,130.69,130.66,0.70489766]
[1767441214176,3.36659391,130.71,130.66,0.70489766]
[1767441214377,0.70812948,130.71,130.67,0.70489766]
[1767441216583,0.70812948,130.71,130.68,0.70489766]
[1767441220567,3.36659391,130.71,130.68,0.70489766]
[1767441223476,2.65846443,130.71,130.68,0.70489766]
[1767441232785,15.0088567,130.72,130.68,0.70489766]
[1767441235487,12.35039227,130.72,130.69,0.70489766]
[1767441235690,15.0088567,130.72,130.69,0.70489766]
[1767441236076,11.64226279,130.72,130.69,0.70489766]
[1767441237071,7.65029224,130.72,130.69,0.70489766]
[1767441241373,16.36813738,130.73,130.7,0.69199593]
[1767441241699,14.66812948,130.73,130.7,0.69199593]
[1767441242268,0.70812948,130.73,130.7,0.69199593]
[1767441242474,10.00977475,130.74,130.7,0.69199593]
[1767441243176,0.16456903,130.73,130.7,0.69199593]
[1767441243800,0.66066203,130.74,130.71,0.69199593]
[1767441243985,20.31180575,130.75,130.71,0.69199593]
[1767441244376,1.7000079,130.74,130.71,0.69199593]
[1767441244578,1.86457693,130.74,130.71,0.69199593]
[1767441249472,2.355709,130.73,130.7,0.69199593]
[1767441249783,1.86948825,130.72,130.69,0.69199593]
[1767441250092,1.7000079,130.71,130.69,0.69199593]
[1767441253699,10.00147013,130.71,130.69,0.69199593]
[1767441253999,0.16456903,130.7,130.67,14.65199593]
[1767441254197,0.16456903,130.7,130.65,7.65385092]
[1767441254198,1.7000079,130.7,130.65,7.65385092]
[1767441254398,1.7000079,130.7,130.66,0.69199593]
[1767441254601,0.66066203,130.69,130.65,8.34584685]
[1767441254793,2.36066993,130.7,130.66,0.69199593]
[1767441255800,0.16456903,130.69,130.65,7.65385092]
[1767441256095,0.6557011,130.68,130.65,7.65385092]
[1767441256285,0.6557011,130.68,130.65,8.34584685]
[1767441257380,0.16456903,130.68,130.65,7.65385092]
[1767441257577,0.16456903,130.68,130.65,8.34584685]
[1767441257790,0.16456903,130.68,130.65,7.65385092]
[1767441259787,0.16456903,130.68,130.65,8.34584685]
[1767441259987,9.35186967,130.69,130.66,0.69199593]
[1767441264728,0.16948035,130.68,130.65,8.34584685]
[1767441265021,9.35186967,130.69,130.66,0.69199593]
[1767441269421,0.6557011,130.68,130.65,7.65385092]
[1767441269725,0.6557011,130.68,130.65,8.34584685]
[1767441270622,1.7000079,130.69,130.66,0.66635132]
[1767441271537,0.67692197,130.68,130.65,7.65385092]
[1767441271828,1.7000079,130.69,130.66,0.66635132]
[1767441273116,9.3517119,130.69,130.66,0.66635132]
[1767441276133,9.49484571,130.69,130.66,0.66635132]
[1767441276836,0.67692197,130.68,130.64,23.98080131]
[1767441277037,0.67692197,130.68,130.65,0.66635132]
[1767441277334,9.49484571,130.69,130.65,0.66635132]
[1767441277632,0.67692197,130.68,130.65,0.66635132]
[1767441278833,10.03402567,130.69,130.65,0.66635132]
[1767441281931,0.14313381,130.68,130.64,7.65444209]
[1767441282137,0.14313381,130.68,130.64,8.32079341]
[1767441282634,0.14313381,130.68,130.65,0.66635132]
[1767441282816,10.03402567,130.69,130.65,0.66635132]
[1767441283339,0.14313381,130.68,130.64,8.32079341]
[1767441283738,0.14313381,130.68,130.65,0.66635132]
[1767441287744,0.14313381,130.68,130.64,8.32079341]
[1767441288048,10.03402567,130.69,130.65,0.66635132]
[1767441288645,0.14313381,130.68,130.64,8.32079341]
[1767441288848,0.14313381,130.68,130.65,0.66635132]
[1767441289030,0.14313381,130.68,130.64,8.32079341]
[1767441289224,0.14313381,130.68,130.65,0.66635132]
[1767441289424,0.14313381,130.68,130.64,8.32079341]
[1767441289660,0.14313381,130.68,130.65,0.66635132]
[1767441291046,0.14313381,130.68,130.64,8.32079341]
[1767441291244,0.14313381,130.68,130.65,0.66635132]
[1767441291446,9.3517119,130.69,130.65,0.66635132]
[1767441291848,0.67692197,130.68,130.64,7.65444209]
[1767441292036,0.67692197,130.68,130.65,0.66635132]
[1767441292351,0.67692197,130.68,130.64,8.32079341]
[1767441292548,9.49484571,130.69,130.65,0.66635132]
[1767441292861,9.3517119,130.69,130.65,0.66635132]
[1767441293023,9.49484571,130.69,130.65,0.66635132]
[1767441293226,0.67692197,130.68,130.64,7.65444209]
[1767441293422,0.67692197,130.68,130.65,0.66635132]
[1767441293854,0.67692197,130.68,130.64,8.32079341]
[1767441296947,9.3517119,130.69,130.65,0.67213585]
[1767441297163,9.49185247,130.69,130.65,0.67213585]
[1767441299436,9.49185247,130.69,130.64,7.65444209]
[1767441299437,0.67988528,130.68,130.64,7.65444209]
[1767441299746,0.67988528,130.68,130.65,0.7100999]
[1767441300049,0.14553801,130.67,130.64,7.65444209]
[1767441300243,0.14553801,130.67,130.63,0.7100999]
[1767441300448,0.67454181,130.66,130.63,0.7100999]
[1767441300639,0.67454181,130.66,130.62,8.36548055]
[1767441301042,10.31164182,130.67,130.63,0.7100999]
[1767441301751,0.1013299,130.66,130.62,8.36548055]
[1767441302049,0.1013299,130.66,130.62,11.02421564]
[1767441302643,10.31164182,130.67,130.63,0.7100999]
[1767441303652,10.41297172,130.67,130.63,0.7100999]
[1767441303838,0.71830784,130.66,130.63,0.7100999]
[1767441305837,10.31164182,130.67,130.63,0.7100999]
[1767441306431,10.41297172,130.67,130.63,0.7100999]
[1767441307456,10.31164182,130.67,130.63,0.7100999]
[1767441308640,2.65873509,130.66,130.63,0.7100999]
[1767441309536,2.76006499,130.66,130.63,0.7100999]
[1767441309745,2.76006499,130.66,130.62,8.36548055]
[1767441309946,0.1013299,130.66,130.62,11.02421564]
[1767441310954,0.1013299,130.66,130.62,7.65538065]
[1767441311157,0.1013299,130.66,130.62,8.36548055]
[1767441313267,10.41301795,130.67,130.63,0.7100999]
[1767441314364,2.65873509,130.65,130.62,0.7100999]
[1767441318470,11.03061783,130.66,130.62,0.7100999]
[1767441329967,0.10749968,130.65,130.62,0.7100999]
[1767441331190,10.31230999,130.66,130.62,0.7100999]
[1767441331394,11.02610031,130.66,130.62,0.7100999]
[1767441333000,2.77070711,130.65,130.62,0.7100999]
[1767441333196,0.70777214,130.64,130.6,11.03946064]
[1767441333381,2.65873509,130.65,130.61,0.72417777]
[1767441333582,2.77070711,130.65,130.61,0.72417777]
[1767441333888,0.70777214,130.64,130.6,11.03946064]
[1767441334295,0.70777214,130.64,130.6,8.38072555]
[1767441334490,0.70777214,130.64,130.6,11.03946064]
[1767441335594,0.70777214,130.64,130.61,0.72417777]
[1767441337892,11.02620034,130.66,130.61,0.72417777]
[1767441339280,11.02620034,130.66,130.62,0.72417777]
[1767441340803,19.13070094,130.68,130.63,0.72417777]
[1767441340804,7.65300666,130.67,130.63,0.72417777]
[1767441341103,10.42371377,130.67,130.63,0.72417777]
[1767441343184,0.70777214,130.66,130.62,11.03858262]
[1767441344106,10.31174175,130.67,130.63,0.72417777]
[1767441344284,11.02553207,130.67,130.63,0.72417777]
[1767441344986,0.11197202,130.66,130.62,11.03858262]
[1767441347914,11.02553207,130.67,130.63,0.72417777]
[1767441348695,8.36679698,130.67,130.64,0.72417777]
[1767441350616,7.65300666,130.67,130.64,0.72417777]
[1767441350918,7.76497868,130.67,130.64,0.72417777]
[1767441405062,9.46651573,130.67,130.64,0.72417777]
[1767441405261,0.66957788,130.66,130.63,2.37275081]
[1767441405662,9.35454371,130.67,130.64,0.67121376]
[1767441405877,9.51028605,130.67,130.64,0.67121376]
[1767441408086,2.36597657,130.66,130.63,0.67121376]
[1767441408688,3.99233199,130.7,130.63,0.67121376]
[1767441408882,3.99233199,130.7,130.64,0.67121376]
[1767441408883,11.64360908,130.7,130.64,0.67121376]
[1767441409188,0.66957788,130.69,130.66,2.37275081]
[1767441409494,7.80701943,130.7,130.66,2.37275081]
[1767441409988,9.50855648,130.7,130.66,0.67121376]
[1767441410687,9.50855648,130.7,130.66,2.37275081]
[1767441411460,9.50855648,130.7,130.65,0.67121376]
[1767441411664,9.50855648,130.7,130.67,0.67121376]
[1767441412988,0.16082932,130.68,130.64,0.67121376]
[1767441413183,0.65940341,130.67,130.64,0.67121376]
[1767441413385,2.37111493,130.68,130.64,0.67121376]
[1767441414188,8.31504578,130.71,130.66,0.67121376]
[1767441414392,0.66443952,130.71,130.68,0.67121376]
[1767441414686,0.66443952,130.71,130.69,0.67121376]
[1767441415077,0.66443952,130.71,130.68,0.67121376]
[1767441419297,2.36094046,130.69,130.66,0.67121376]
[1767441419787,1.86735212,130.68,130.66,0.67121376]
[1767441419987,1.86735212,130.68,130.63,7.65506422]
[1767441419988,1.86735212,130.68,130.64,0.65591799]
[1767441420697,1.86735212,130.68,130.65,0.65591799]
[1767441421068,10.00911229,130.67,130.64,0.65591799]
[1767441421276,0.17549088,130.66,130.63,1.70153705]
[1767441421498,10.03299758,130.67,130.64,0.65591799]
[1767441421797,0.67303983,130.66,130.63,1.70153705]
[1767441422492,8.33146053,130.67,130.64,0.65591799]
[1767441422800,1.84859221,130.66,130.63,0.65591799]
[1767441423097,1.70153705,130.66,130.63,0.65591799]
[1767441423798,8.33146053,130.67,130.63,0.65591799]
[1767441423799,10.03299758,130.67,130.63,0.65591799]
[1767441424510,10.99052273,130.67,130.63,0.65591799]
[1767441425296,2.80611736,130.66,130.63,0.65591799]
[1767441427709,10.99052273,130.67,130.63,0.65591799]
[1767441428000,10.99052273,130.67,130.63,3.31498019]
[1767441428202,10.99052273,130.67,130.64,0.65591799]
[1767441428807,10.45963994,130.66,130.62,0.65591799]
[1767441432308,7.79821498,130.7,130.66,0.65591799]
[1767441432509,0.14705516,130.7,130.67,3.31498019]
[1767441433208,0.67835281,130.71,130.68,0.65591799]
[1767441434609,0.67835281,130.71,130.68,3.31498019]
[1767441439304,0.67835281,130.71,130.69,0.65591799]
[1767441440717,0.67835281,130.71,130.68,0.65591799]
[1767441440915,0.67835281,130.71,130.68,3.31498019]
[1767441442017,0.67835281,130.71,130.68,0.65591799]
[1767441442210,0.67835281,130.71,130.68,3.31498019]
[1767441444406,0.67835281,130.71,130.66,7.65309967]
[1767441444719,0.67835281,130.71,130.68,2.6590622]
[1767441445722,0.67835281,130.71,130.68,3.31498019]
[1767441453226,0.67835281,130.71,130.69,2.6590622]
[1767441454726,0.67835281,130.71,130.68,0.65591799]
[1767441454924,0.67835281,130.71,130.68,3.31498019]
[1767441455121,0.67835281,130.71,130.68,0.65591799]
[1767441455629,0.67835281,130.71,130.68,2.6590622]
[1767441455630,0.57835281,130.7,130.68,2.6590622]
[1767441455800,0.57835281,130.7,130.68,0.71432736]
[1767441456006,0.57835281,130.7,130.68,2.6590622]
[1767441456227,8.2290848,130.71,130.68,3.37338956]
[1767441457005,0.099,130.7,130.67,3.37338956]
[1767441458018,0.099,130.7,130.67,0.71432736]
[1767441458918,0.099,130.7,130.67,3.37338956]
[1767441461633,27.35539495,130.71,130.68,0.71432736]
[1767441463033,0.099,130.7,130.68,0.71432736]
[1767441465931,0.099,130.7,130.67,3.37338956]
[1767441467517,27.35518702,130.71,130.68,0.71432736]
[1767441469641,0.099,130.7,130.68,0.71432736]
[1767441474641,27.35518702,130.71,130.68,0.71432736]
[1767441475344,5.72782208,130.7,130.68,0.71432736]
[1767441475548,27.35518702,130.71,130.68,0.71432736]
[1767441476335,5.73070989,130.7,130.68,0.71432736]
[1767441476625,27.35518702,130.71,130.68,0.71432736]
[1767441476944,5.73071155,130.7,130.68,0.71432736]
[1767441477160,27.35518702,130.71,130.68,0.71432736]
[1767441477324,5.73515067,130.7,130.68,0.71432736]
[1767441477524,27.35518702,130.71,130.68,0.71432736]
[1767441477823,5.73515067,130.7,130.68,0.71432736]
[1767441478023,27.35518702,130.71,130.68,0.71432736]
[1767441478231,5.73515067,130.7,130.68,0.71432736]
[1767441478430,27.35518702,130.71,130.68,0.71432736]
[1767441478630,5.7351632,130.7,130.68,0.71432736]